bitfinex-derivatives/quotes_BTCF0:USTF0_20230106
["timestamp","ask_amount","ask_price","bid_price","bid_amount"]
[1673014943984,0.3767,16761.0,16760.0,1.5441]
[1673014944622,0.24785772,16761.0,16760.0,2.1409]
[1673014944824,0.076,16761.0,16760.0,2.23043118]
[1673014945245,0.076,16761.0,16760.0,2.1409]
[1673014947344,0.076,16761.0,16760.0,2.36762795]
[1673014947769,0.076,16761.0,16760.0,2.23333118]
[1673014948286,0.076,16761.0,16760.0,2.36762795]
[1673014949131,0.076,16761.0,16760.0,2.23333118]
[1673014949354,0.076,16761.0,16760.0,2.36762795]
[1673014949556,0.076,16761.0,16760.0,2.23333118]
[1673014949988,0.3049,16764.0,16760.0,2.22833118]
[1673014950195,0.3049,16764.0,16763.0,0.2982]
[1673014950404,0.3007,16765.0,16763.0,0.4982]
[1673014950614,0.3007,16765.0,16764.0,0.4453]
[1673014952405,0.4357,16765.0,16764.0,0.4493]
[1673014952815,0.3007,16765.0,16764.0,0.4503]
[1673014953140,0.3877,16765.0,16764.0,0.4503]
[1673014954080,0.3877,16765.0,16764.0,0.005]
[1673014954296,0.3877,16765.0,16764.0,0.4523]
[1673014957238,0.38750255,16765.0,16764.0,0.4523]
[1673014957655,0.38750255,16765.0,16764.0,0.005]
[1673014957865,0.38750255,16765.0,16764.0,0.4502]
[1673014958486,0.38750255,16765.0,16764.0,0.1532]
[1673014958700,0.38750255,16765.0,16764.0,0.1541]
[1673014960810,0.53530255,16765.0,16764.0,0.005]
[1673014970588,0.38750255,16765.0,16764.0,0.1541]
[1673014972803,0.087,16765.0,16764.0,0.1541]
[1673014973013,0.6884,16765.0,16764.0,0.1541]
[1673014978900,0.6884,16765.0,16764.0,0.303]
[1673014983844,0.6884,16765.0,16764.0,0.1541]
[1673014988984,0.3877,16765.0,16764.0,0.1541]
[1673014996658,0.6884,16765.0,16764.0,0.1541]
[1673015008538,0.6884,16765.0,16764.0,0.1539491]
[1673015010635,0.8369,16765.0,16764.0,0.1539491]
[1673015011788,0.2355,16765.0,16764.0,0.1539491]
[1673015012012,0.8369,16765.0,16764.0,0.1539491]
[1673015013890,0.8375,16765.0,16764.0,0.1539491]
[1673015020612,0.6884,16765.0,16764.0,0.1537491]
[1673015020821,0.087,16765.0,16764.0,0.1537491]
[1673015021032,0.3877,16765.0,16764.0,0.1537491]
[1673015027449,0.3877,16765.0,16764.0,0.1525491]
[1673015040577,0.3877,16765.0,16764.0,0.1539491]
[1673015044053,0.3877,16765.0,16764.0,0.1533491]
[1673015044892,0.087,16765.0,16764.0,0.4506491]
[1673015046460,0.087,16765.0,16764.0,0.54018028]
[1673015046670,0.087,16765.0,16764.0,0.6506491]
[1673015047311,0.087,16765.0,16764.0,0.74018028]
[1673015047612,0.087,16765.0,16764.0,2.51669077]
[1673015048254,0.3007,16770.0,16765.0,0.2]
[1673015048570,0.2,16770.0,16769.0,0.2973]
[1673015048883,1.08772733,16770.0,16769.0,0.2973]
[1673015049508,1.22472733,16770.0,16769.0,0.2973]
[1673015050254,1.22472733,16770.0,16769.0,0.3013]
[1673015052457,1.22472733,16770.0,16769.0,0.1531]
[1673015056340,0.337,16770.0,16769.0,0.1531]
[1673015058971,0.337,16770.0,16769.0,0.1529]
[1673015061087,0.137,16770.0,16769.0,0.1529]
[1673015061389,0.10304508,16770.0,16769.0,2.8356]
[1673015061802,0.07383208,16770.0,16769.0,6.6056]
[1673015063380,0.07383208,16770.0,16769.0,2.8356]
[1673015064017,0.2,16772.0,16769.0,6.6036]
[1673015064341,0.2,16772.0,16771.0,0.2982]
[1673015064533,0.2,16772.0,16771.0,0.4982]
[1673015064749,0.3007,16773.0,16772.0,0.1491]
[1673015064962,0.3007,16773.0,16772.0,0.6471]
[1673015065169,0.2,16774.0,16772.0,0.6471]
[1673015065388,0.2,16774.0,16773.0,0.1491]
[1673015067269,0.2,16774.0,16773.0,0.1591]
[1673015068957,0.5007,16774.0,16773.0,0.1591]
[1673015071586,0.2,16774.0,16773.0,0.1591]
[1673015071801,0.5007,16774.0,16773.0,0.1591]
[1673015079154,0.2,16774.0,16773.0,0.1591]
[1673015081467,0.2,16774.0,16773.0,0.1491]
[1673015081668,0.2,16774.0,16773.0,0.1571]
[1673015083877,0.2,16775.0,16773.0,0.1571]
[1673015084197,0.2,16775.0,16774.0,0.2982]
[1673015084718,1.09311635,16775.0,16774.0,0.2982]
[1673015085242,1.09311635,16775.0,16774.0,0.3082]
[1673015089975,0.89311635,16775.0,16774.0,0.3082]
[1673015090709,0.89311635,16775.0,16774.0,0.3079]
[1673015093222,0.86341635,16775.0,16774.0,0.3079]
[1673015093429,0.86341635,16775.0,16774.0,0.4559]
[1673015093644,0.3269,16777.0,16774.0,1.5495]
[1673015093856,0.2,16778.0,16776.0,0.2982]
[1673015094064,0.2,16778.0,16777.0,0.498]
[1673015095213,0.2,16778.0,16777.0,0.509]
[1673015095857,0.2,16778.0,16777.0,0.309]
[1673015099642,0.5007,16778.0,16777.0,0.309]
[1673015100692,0.5007,16778.0,16777.0,0.1601]
[1673015102797,0.9498,16778.0,16777.0,0.011]
[1673015103218,1.8415063,16778.0,16777.0,0.011]
[1673015103749,1.5415063,16778.0,16777.0,0.011]
[1673015116891,1.8422063,16778.0,16777.0,0.011]
[1673015120782,1.8413063,16778.0,16777.0,0.011]
[1673015121728,1.9892063,16778.0,16774.0,0.1491]
[1673015121943,0.3007,16775.0,16774.0,0.1491]
[1673015122887,0.3007,16775.0,16774.0,0.1581]
[1673015123202,1.49008141,16775.0,16774.0,0.1581]
[1673015123518,1.63918141,16775.0,16774.0,0.009]
[1673015130563,1.63788141,16775.0,16774.0,0.009]
[1673015132555,1.18938141,16775.0,16774.0,0.1581]
[1673015134349,1.18938141,16775.0,16774.0,0.1567]
[1673015140539,1.18938141,16775.0,16774.0,0.1581]
[1673015142761,1.33848141,16775.0,16774.0,0.009]
[1673015147488,1.03778141,16775.0,16774.0,0.009]
[1673015147697,1.63918141,16775.0,16774.0,0.009]
[1673015150541,1.63788141,16775.0,16774.0,0.009]
[1673015157063,1.49008141,16775.0,16774.0,0.1581]
[1673015157280,1.18938141,16775.0,16774.0,0.1581]
[1673015161475,1.18938141,16775.0,16774.0,0.1579]
[1673015161896,1.18938141,16775.0,16774.0,0.009]
[1673015161897,1.33848141,16775.0,16774.0,0.009]
[1673015167157,1.63918141,16775.0,16774.0,0.009]
[1673015170515,1.63918141,16775.0,16774.0,0.3579]
[1673015170516,1.18938141,16775.0,16774.0,0.3579]
[1673015170728,1.18938141,16775.0,16774.0,4.1279]
[1673015170729,0.85900741,16775.0,16774.0,4.1279]
[1673015171563,0.82939541,16775.0,16774.0,4.1279]
[1673015172728,1.13009541,16775.0,16774.0,0.3579]
[1673015183770,1.13009541,16775.0,16774.0,0.1579]
[1673015200585,1.13009541,16775.0,16774.0,0.307]
[1673015202370,0.82939541,16775.0,16774.0,0.307]
[1673015203937,0.82939541,16775.0,16774.0,0.009]
[1673015204154,0.82939541,16775.0,16774.0,0.3068]
[1673015207418,0.82939541,16775.0,16774.0,0.009]
[1673015207626,0.82939541,16775.0,16774.0,0.307]
[1673015208147,1.13009541,16775.0,16774.0,0.307]
[1673015208981,0.82939541,16775.0,16774.0,0.307]
[1673015209187,1.13009541,16775.0,16774.0,0.307]
[1673015216460,0.82939541,16775.0,16774.0,0.307]
[1673015216672,0.2,16776.0,16774.0,0.307]
[1673015216881,0.2,16776.0,16775.0,0.3491]
[1673015218032,0.2,16776.0,16775.0,0.3591]
[1673015218353,0.2,16776.0,16775.0,0.1591]
[1673015225915,0.2,16776.0,16775.0,0.15897095]
[1673015227599,0.5007,16776.0,16775.0,0.15897095]
[1673015230558,0.5007,16776.0,16775.0,0.1582]
[1673015233811,0.3007,16776.0,16775.0,0.1582]
[1673015234751,0.3007,16776.0,16775.0,0.3582]
[1673015236873,0.3007,16776.0,16775.0,0.3591]
[1673015255895,0.3007,16776.0,16775.0,0.1591]
[1673015260080,0.3007,16776.0,16775.0,0.3591]
[1673015260295,0.3007,16776.0,16775.0,0.1591]
[1673015262294,0.3007,16776.0,16775.0,0.3591]
[1673015265552,0.3007,16776.0,16775.0,0.1591]
[1673015269228,0.3007,16776.0,16775.0,0.1589]
[1673015270485,0.4498,16776.0,16775.0,0.01]
[1673015270693,0.5974,16776.0,16775.0,0.01]
[1673015270903,1.48894239,16776.0,16775.0,0.01]
[1673015274376,1.48894239,16776.0,16775.0,0.00990284]
[1673015278683,1.34134239,16776.0,16775.0,0.00990284]
[1673015287831,1.64204239,16776.0,16775.0,0.00990284]
[1673015289083,1.04064239,16776.0,16775.0,0.00990284]
[1673015289292,1.64204239,16776.0,16775.0,0.00990284]
[1673015301913,1.04064239,16776.0,16775.0,0.00990284]
[1673015302123,1.64204239,16776.0,16775.0,0.00990284]
[1673015313153,1.34134239,16776.0,16775.0,0.00990284]
[1673015313476,1.64204239,16776.0,16775.0,0.00990284]
[1673015323252,1.64204239,16776.0,16775.0,0.00977126]
[1673015350048,1.49294239,16776.0,16775.0,0.15887126]
[1673015352560,1.19224239,16776.0,16775.0,0.15887126]
[1673015353410,1.19224239,16776.0,16775.0,0.35887126]
[1673015356776,1.19824239,16776.0,16775.0,0.3581]
[1673015357293,0.89754239,16776.0,16775.0,0.3581]
[1673015357509,0.006,16776.0,16775.0,0.3581]
[1673015357930,0.6282,16780.0,16775.0,0.9563]
[1673015358249,0.3007,16778.0,16776.0,0.2]
[1673015358462,0.3007,16776.0,16775.0,0.009]
[1673015358663,0.3007,16776.0,16775.0,0.1581]
[1673015358664,0.5007,16776.0,16775.0,0.1581]
[1673015358876,0.50617951,16776.0,16775.0,0.1581]
[1673015359715,0.50617951,16776.0,16775.0,0.1491]
[1673015360040,0.50717951,16776.0,16775.0,0.1581]
[1673015360238,0.50617951,16776.0,16775.0,0.1491]
[1673015360445,0.50717951,16776.0,16775.0,0.1591]
[1673015360664,0.65627951,16776.0,16775.0,0.01]
[1673015364344,0.50717951,16776.0,16775.0,0.1591]
[1673015372011,0.65537951,16776.0,16775.0,0.1591]
[1673015374963,0.65537951,16776.0,16775.0,0.01]
[1673015374964,0.65477951,16776.0,16775.0,0.01]
[1673015376746,0.35407951,16776.0,16775.0,0.01]
[1673015376958,0.95547951,16776.0,16775.0,0.01]
[1673015380638,0.95637951,16776.0,16775.0,0.01]
[1673015390627,0.95697951,16776.0,16775.0,0.01]
[1673015395568,0.95547951,16776.0,16775.0,0.01]
[1673015397883,0.65477951,16776.0,16775.0,0.01]
[1673015398099,0.95547951,16776.0,16775.0,0.01]
[1673015400411,0.95547951,16776.0,16772.0,0.1491]
[1673015400412,0.1,16775.0,16772.0,0.1491]
[1673015400624,0.1491,16774.0,16773.0,0.2]
[1673015400929,0.6508,16776.0,16773.0,0.3491]
[1673015401139,0.6508,16776.0,16774.0,0.1483]
[1673015401341,0.11,16775.0,16774.0,0.1483]
[1673015401554,1.00093672,16775.0,16774.0,0.1483]
[1673015402296,0.99093672,16775.0,16774.0,0.1483]
[1673015403558,1.00093672,16775.0,16774.0,0.1573]
[1673015405241,1.00093672,16775.0,16772.0,0.348]
[1673015405456,0.3007,16774.0,16772.0,0.1491]
[1673015405672,0.3007,16774.0,16773.0,0.1491]
[1673015406723,0.3277,16774.0,16773.0,0.1491]
[1673015406935,0.3277,16774.0,16773.0,0.1541]
[1673015407144,0.3277,16774.0,16773.0,0.1533]
[1673015407357,0.4768,16774.0,16773.0,0.005]
[1673015407667,0.4768,16774.0,16773.0,0.01]
[1673015407668,1.36767905,16774.0,16773.0,0.01]
[1673015408515,1.36767905,16774.0,16773.0,0.011]
[1673015409670,1.35967905,16774.0,16773.0,0.01]
[1673015410085,1.34067905,16774.0,16771.0,0.1489]
[1673015410396,0.4483,16772.0,16770.0,0.3482]
[1673015410605,0.2,16771.0,16770.0,0.3483]
[1673015411559,0.4982,16771.0,16769.0,0.61687843]
[1673015411761,0.4498,16770.0,16769.0,0.61687843]
[1673015412179,1.34455642,16770.0,16769.0,0.61687843]
[1673015413127,1.34555642,16770.0,16769.0,0.73787843]
[1673015413545,1.34455642,16770.0,16769.0,0.61687843]
[1673015413754,1.34455642,16770.0,16769.0,0.62187843]
[1673015413755,1.51195642,16770.0,16769.0,0.62187843]
[1673015413971,1.66105642,16770.0,16764.0,0.1491]
[1673015414180,0.1478,16767.0,16764.0,0.1491]
[1673015414494,0.6014,16766.0,16764.0,0.3491]
[1673015414709,0.6014,16766.0,16764.0,0.1491]
[1673015415026,0.1476,16765.0,16762.0,0.1491]
[1673015415341,0.7505,16766.0,16762.0,0.1491]
[1673015415342,0.2,16763.0,16762.0,0.1491]
[1673015415545,1.34102696,16764.0,16762.0,0.1491]
[1673015415966,0.4498,16764.0,16763.0,0.2]
[1673015416386,0.4518,16764.0,16763.0,0.2]
[1673015416598,0.1511,16764.0,16763.0,0.2]
[1673015416809,0.1491,16764.0,16763.0,0.2]
[1673015417011,0.1511,16764.0,16763.0,0.339]
[1673015417970,0.4518,16764.0,16763.0,0.139]
[1673015420915,1.35225955,16764.0,16763.0,0.139]
[1673015436365,1.35225955,16764.0,16763.0,0.339]
[1673015436572,0.90045955,16764.0,16763.0,0.4872]
[1673015438268,0.90045955,16764.0,16763.0,0.4873]
[1673015438683,0.89183766,16765.0,16763.0,0.4873]
[1673015438899,0.89183766,16765.0,16764.0,0.3491]
[1673015439311,1.09183766,16765.0,16764.0,0.3491]
[1673015439949,1.09183766,16765.0,16764.0,0.1491]
[1673015440572,1.09183766,16765.0,16764.0,0.1485]
[1673015441210,1.09183766,16765.0,16763.0,0.339]
[1673015441211,1.23993766,16765.0,16763.0,0.4881]
[1673015441423,0.2,16764.0,16763.0,0.3491]
[1673015441623,0.2,16764.0,16763.0,0.2881]
[1673015442050,0.2,16764.0,16763.0,0.1491]
[1673015442362,0.5007,16764.0,16763.0,0.1491]
[1673015444246,0.5007,16764.0,16763.0,0.2881]
[1673015444247,0.5027,16764.0,16763.0,0.2881]
[1673015449309,0.6515,16764.0,16763.0,0.139]
[1673015449736,1.5509766,16764.0,16763.0,0.139]
[1673015449947,1.4021766,16764.0,16763.0,0.139]
[1673015450157,1.5512766,16764.0,16763.0,0.139]
[1673015450569,1.6991766,16764.0,16763.0,0.139]
[1673015450897,1.8482766,16764.0,16760.0,0.6171606]
[1673015451089,0.3007,16761.0,16760.0,0.6171606]
[1673015451303,1.9437,16761.0,16760.0,0.15203903]
[1673015451515,2.94252416,16761.0,16760.0,0.15203903]
[1673015452773,3.07752416,16761.0,16760.0,0.15503903]
[1673015453628,3.07672416,16761.0,16760.0,0.15503903]
[1673015454250,3.07772416,16761.0,16760.0,0.15503903]
[1673015455297,2.18292416,16761.0,16760.0,0.15503903]
[1673015464768,3.07792416,16761.0,16760.0,0.15503903]
[1673015465298,4.27252416,16761.0,16760.0,0.15503903]
[1673015465499,4.27112416,16761.0,16760.0,0.15503903]
[1673015465710,5.91182416,16761.0,16760.0,0.15503903]
[1673015466022,5.91182416,16761.0,16760.0,9.03e-06]
[1673015466663,0.30069097,16757.0,16750.0,0.3293]
[1673015466869,0.30069097,16757.0,16748.0,0.3154]
[1673015466870,0.5982,16751.0,16748.0,0.6154]
[1673015467076,0.4498,16751.0,16749.0,0.2]
[1673015467280,0.01108363,16750.0,16749.0,0.2]
[1673015467701,8.363e-05,16750.0,16749.0,0.2]
[1673015468131,0.014,16751.0,16749.0,0.2]
[1673015468349,0.3007,16754.0,16750.0,0.746]
[1673015468654,0.1491,16755.0,16753.0,0.1491]
[1673015468868,0.3007,16757.0,16754.0,0.148]
[1673015469074,0.5007,16757.0,16754.0,0.2]
[1673015469599,1.0929279,16756.0,16754.0,0.2]
[1673015469813,1.0929279,16756.0,16755.0,0.1485]
[1673015470540,1.2414279,16756.0,16753.0,0.3491]
[1673015470752,0.1488,16754.0,16753.0,0.2]
[1673015471179,1.14802665,16754.0,16753.0,0.2]
[1673015471709,1.15902665,16754.0,16753.0,0.2]
[1673015471924,1.15902665,16754.0,16752.0,0.1491]
[1673015472765,1.15902665,16754.0,16751.0,0.3491]
[1673015472766,0.4498,16753.0,16751.0,0.3491]
[1673015472971,0.1491,16752.0,16751.0,0.2]
[1673015473181,1.04606078,16752.0,16751.0,0.2]
[1673015473600,1.04606078,16752.0,16750.0,0.3491]
[1673015473807,0.2,16751.0,16750.0,0.3491]
[1673015474648,0.5007,16751.0,16750.0,0.3491]
[1673015474869,0.5147,16751.0,16750.0,0.3491]
[1673015475077,1.40752289,16751.0,16750.0,0.3491]
[1673015475287,1.20752289,16751.0,16750.0,0.3491]
[1673015476855,0.90682289,16751.0,16750.0,0.3491]
[1673015477074,0.90682289,16751.0,16750.0,0.6491]
[1673015477696,0.90682289,16751.0,16750.0,0.7976]
[1673015478117,0.63742289,16751.0,16750.0,0.7976]
[1673015478331,0.2,16756.0,16750.0,2.5883]
[1673015478547,0.2,16756.0,16755.0,0.1491]
[1673015479067,1.09189449,16756.0,16755.0,0.1491]
[1673015479899,1.09189449,16756.0,16755.0,0.149]
[1673015480538,0.90789449,16756.0,16755.0,0.149]
[1673015480745,1.10789449,16756.0,16755.0,0.149]
[1673015480956,1.22589449,16756.0,16755.0,0.15]
[1673015481175,1.22589449,16756.0,16755.0,0.001]
[1673015482964,1.52659449,16756.0,16755.0,0.001]
[1673015484961,1.52659449,16756.0,16755.0,0.201]
[1673015484962,1.22589449,16756.0,16755.0,0.201]
[1673015485282,1.02589449,16756.0,16755.0,0.201]
[1673015485696,1.02589449,16756.0,16755.0,0.3205]
[1673015486546,1.02589449,16756.0,16755.0,4.0905]
[1673015486754,0.99630149,16756.0,16755.0,4.0905]
[1673015487582,0.99630149,16756.0,16755.0,0.3205]
[1673015491162,0.99630149,16756.0,16755.0,4.0905]
[1673015491374,0.3132,16759.0,16755.0,4.3288]
[1673015491585,0.3132,16759.0,16758.0,0.1195]
[1673015491789,0.3007,16760.0,16758.0,0.3195]
[1673015492002,0.89068586,16759.0,16758.0,0.3195]
[1673015492428,0.89068586,16759.0,16758.0,0.6202]
[1673015492638,0.89068586,16759.0,16758.0,0.6192]
[1673015492847,0.89670627,16760.0,16758.0,0.6192]
[1673015493062,0.136,16760.0,16759.0,0.2195]
[1673015493373,0.2,16761.0,16759.0,0.2195]
[1673015493581,0.89833896,16760.0,16759.0,0.2195]
[1673015494103,1.03433896,16760.0,16759.0,0.2195]
[1673015494524,1.03433896,16760.0,16759.0,0.339]
[1673015494732,1.03433896,16760.0,16759.0,0.2195]
[1673015495781,0.136,16760.0,16759.0,0.2195]
[1673015496000,0.3195,16762.0,16759.0,0.2195]
[1673015496203,0.049,16760.0,16759.0,0.2315]
[1673015499355,0.049,16760.0,16759.0,0.351]
[1673015500613,0.2,16764.0,16760.0,0.2]
[1673015500829,0.2,16764.0,16763.0,0.3193]
[1673015501038,0.4202,16766.0,16763.0,0.3193]
[1673015501353,0.8902736,16764.0,16763.0,0.3193]
[1673015501668,0.2,16765.0,16763.0,0.3193]
[1673015501873,0.89666175,16764.0,16763.0,0.3193]
[1673015502507,0.89666175,16764.0,16763.0,0.1303]
[1673015502715,1.19736175,16764.0,16763.0,0.1303]
[1673015502927,1.19736175,16764.0,16763.0,0.1283]
[1673015503868,1.31686175,16764.0,16763.0,0.009]
[1673015505453,1.43636175,16764.0,16763.0,0.009]
[1673015515643,1.31686175,16764.0,16763.0,0.009]
[1673015516792,1.01616175,16764.0,16763.0,0.009]
[1673015517003,0.89666175,16764.0,16763.0,0.1276]
[1673015518576,1.09541421,16765.0,16763.0,0.1276]
[1673015518789,0.89541421,16765.0,16763.0,0.1276]
[1673015519004,0.89541421,16765.0,16764.0,0.1193]
[1673015519414,0.89541421,16765.0,16764.0,0.3193]
[1673015519415,1.09541421,16765.0,16764.0,0.3193]
[1673015520260,0.89541421,16765.0,16764.0,0.3293]
[1673015520681,0.89541421,16765.0,16764.0,4.0993]
[1673015520999,0.20151762,16766.0,16765.0,0.2]
[1673015521214,0.2,16766.0,16765.0,0.3195]
[1673015521632,1.08900301,16766.0,16765.0,0.3195]
[1673015522255,1.08900301,16766.0,16765.0,0.3305]
[1673015522996,1.08900301,16766.0,16765.0,0.1305]
[1673015523409,0.3007,16769.0,16765.0,0.6701]
[1673015523622,0.3007,16769.0,16765.0,0.3117]
[1673015523623,0.4202,16769.0,16765.0,0.3117]
[1673015523838,0.2,16768.0,16766.0,0.2]
[1673015524036,1.09873296,16768.0,16766.0,0.2]
[1673015524252,1.09873296,16768.0,16765.0,0.3107]
[1673015524460,0.3007,16767.0,16765.0,0.01]
[1673015524778,1.09815369,16766.0,16765.0,0.01]
[1673015525198,1.09815369,16766.0,16765.0,0.011]
[1673015526037,1.09815369,16766.0,16765.0,0.009]
[1673015526783,0.89815369,16766.0,16765.0,0.1285]
[1673015527095,0.89815369,16766.0,16765.0,0.4292]
[1673015529722,1.09815369,16766.0,16765.0,0.1285]
[1673015530135,1.09815369,16766.0,16765.0,0.009]
[1673015530665,1.09815369,16766.0,16765.0,0.1285]
[1673015536864,1.21655369,16766.0,16765.0,0.009]
[1673015540653,1.09815369,16766.0,16765.0,0.009]
[1673015546113,0.89815369,16766.0,16765.0,0.4292]
[1673015547269,0.88326036,16767.0,16766.0,0.2]
[1673015547480,0.88326036,16767.0,16766.0,0.31819903]
[1673015547691,0.88326036,16767.0,16766.0,1.33409903]
[1673015547910,0.9324,16771.0,16766.0,1.33409903]
[1673015548222,0.9324,16771.0,16770.0,0.1195]
[1673015548423,0.3007,16771.0,16770.0,0.1195]
[1673015548633,1.3943027,16771.0,16770.0,0.1195]
[1673015549266,1.0936027,16771.0,16770.0,0.1195]
[1673015549476,1.0936027,16771.0,16770.0,0.1193]
[1673015549477,0.8936027,16771.0,16770.0,0.1193]
[1673015549682,0.8936027,16771.0,16770.0,0.42]
[1673015549900,1.08927716,16772.0,16771.0,0.1195]
[1673015550112,1.08927716,16772.0,16771.0,0.4381]
[1673015550528,0.88927716,16772.0,16771.0,0.4381]
[1673015550741,0.88927716,16772.0,16771.0,0.438]
[1673015551063,0.88927716,16772.0,16771.0,0.449]
[1673015551586,0.2,16774.0,16771.0,0.5675]
[1673015551789,0.2,16774.0,16773.0,0.2387]
[1673015552322,1.09454798,16774.0,16773.0,0.2387]
[1673015552527,0.89454798,16774.0,16773.0,0.2387]
[1673015553159,0.89454798,16774.0,16773.0,0.2497]
[1673015553369,0.2,16776.0,16773.0,0.2497]
[1673015553576,0.2,16776.0,16775.0,0.1195]
[1673015553994,1.09711663,16776.0,16775.0,0.1195]
[1673015554203,0.89711663,16776.0,16775.0,0.1195]
[1673015554415,0.89711663,16776.0,16775.0,0.3564]
[1673015555472,0.89711663,16776.0,16775.0,0.3674]
[1673015555887,0.89711663,16776.0,16775.0,0.3664]
[1673015556945,0.89711663,16776.0,16775.0,0.4479]
[1673015560831,0.89711663,16776.0,16775.0,0.2479]
[1673015563040,0.89711663,16776.0,16775.0,0.1295]
[1673015564084,0.89711663,16776.0,16775.0,0.01]
[1673015564299,1.31691663,16776.0,16775.0,0.01]
[1673015565466,1.01621663,16776.0,16775.0,0.01]
[1673015566397,1.01621663,16776.0,16774.0,0.3007]
[1673015566616,1.01621663,16776.0,16775.0,0.009]
[1673015567665,1.01621663,16776.0,16775.0,0.209]
[1673015567874,1.01621663,16776.0,16775.0,0.009]
[1673015569350,1.01621663,16776.0,16775.0,0.209]
[1673015569557,1.01621663,16776.0,16775.0,0.009]
[1673015570298,1.01621663,16776.0,16775.0,0.209]
[1673015570505,0.89711663,16776.0,16775.0,0.3285]
[1673015571347,0.89711663,16776.0,16775.0,0.1285]
[1673015574603,0.89711663,16776.0,16775.0,0.3285]
[1673015575134,0.89711663,16776.0,16775.0,0.1285]
[1673015575341,1.39781663,16776.0,16775.0,0.009]
[1673015577329,1.39781663,16776.0,16775.0,0.209]
[1673015577330,1.09711663,16776.0,16775.0,0.209]
[1673015577541,1.09711663,16776.0,16775.0,0.009]
[1673015577753,1.09711663,16776.0,16775.0,0.209]
[1673015578175,1.09711663,16776.0,16775.0,0.009]
[1673015579433,1.51691663,16776.0,16775.0,0.009]
[1673015581221,1.21621663,16776.0,16775.0,0.009]
[1673015585739,1.01621663,16776.0,16775.0,0.009]
[1673015585956,0.89711663,16776.0,16775.0,0.009]
[1673015586488,1.09711663,16776.0,16775.0,0.009]
[1673015587220,0.89711663,16776.0,16775.0,0.1283]
[1673015587432,0.89711663,16776.0,16775.0,0.2471]
[1673015588162,0.2,16778.0,16775.0,0.8436]
[1673015588378,0.2,16778.0,16777.0,0.1185]
[1673015589317,0.2,16778.0,16777.0,0.1295]
[1673015590579,0.2,16778.0,16777.0,0.011]
[1673015592596,0.2,16778.0,16777.0,0.211]
[1673015595324,0.2,16779.0,16777.0,0.211]
[1673015595849,0.2,16779.0,16778.0,0.3007]
[1673015596168,0.88447956,16779.0,16778.0,0.30056331]
[1673015596373,0.6193,16781.0,16778.0,0.53936331]
[1673015596374,0.2,16781.0,16778.0,0.53936331]
[1673015596584,0.6294,16782.0,16780.0,0.4202]
[1673015596790,0.3007,16783.0,16780.0,0.4202]
[1673015597010,0.3007,16783.0,16781.0,0.2]
[1673015597011,0.2,16782.0,16781.0,0.2]
[1673015597229,0.2,16782.0,16780.0,0.4202]
[1673015597743,0.2,16782.0,16781.0,0.2]
[1673015598906,0.2,16782.0,16781.0,0.211]
[1673015599112,0.32,16784.0,16781.0,0.211]
[1673015599322,0.2,16784.0,16782.0,0.1184]
[1673015599953,0.89813042,16783.0,16782.0,0.4191]
[1673015600477,0.89813042,16783.0,16782.0,0.4312]
[1673015600791,0.89813042,16783.0,16782.0,0.5496]
[1673015601528,6e-05,16785.0,16782.0,0.5496]
[1673015601734,6e-05,16785.0,16784.0,0.4201]
[1673015603735,6e-05,16785.0,16784.0,0.4311]
[1673015605746,0.7456,16789.0,16784.0,1.0276]
[1673015605964,0.7261,16792.0,16788.0,0.2379]
[1673015605965,0.3007,16792.0,16788.0,0.2379]
[1673015606273,0.6028,16797.0,16791.0,0.3007]
[1673015606474,0.3007,16795.0,16791.0,0.3007]
[1673015606688,0.3007,16795.0,16790.0,0.2]
[1673015607002,0.89179426,16794.0,16792.0,0.1193]
[1673015607321,0.2,16793.0,16791.0,0.1194]
[1673015607531,0.2,16793.0,16791.0,0.4201]
[1673015607845,0.5007,16793.0,16791.0,0.1194]
[1673015608049,0.5007,16793.0,16789.0,0.4202]
[1673015608050,0.89657149,16792.0,16789.0,0.4192]
[1673015608579,0.1,16791.0,16789.0,0.4192]
[1673015608893,0.4007,16791.0,16789.0,0.4192]
[1673015609209,0.4007,16791.0,16789.0,0.1185]
[1673015609617,0.1,16791.0,16789.0,0.1185]
[1673015609840,0.1,16791.0,16789.0,0.3185]
[1673015610363,0.1,16791.0,16789.0,0.1185]
[1673015610987,0.1,16791.0,16789.0,0.3185]
[1673015612361,0.1,16791.0,16790.0,0.3007]
[1673015612978,0.1,16791.0,16789.0,0.3185]
[1673015613403,0.1,16791.0,16789.0,0.1185]
[1673015613615,0.4191,16790.0,16786.0,1.0591]
[1673015613834,1.30952224,16790.0,16786.0,0.4202]
[1673015614159,0.89042224,16790.0,16789.0,0.1186]
[1673015614683,0.89042224,16790.0,16789.0,0.4376]
[1673015619726,0.89042224,16790.0,16789.0,0.2376]
[1673015620344,0.89042224,16790.0,16789.0,0.4376]
[1673015621304,0.89042224,16790.0,16789.0,0.2376]
[1673015621515,0.2,16792.0,16789.0,0.4376]
[1673015621827,0.2,16792.0,16790.0,0.1189]
[1673015622239,0.8938665,16791.0,16790.0,0.1189]
[1673015623709,1.1945665,16791.0,16790.0,0.1189]
[1673015623926,1.1945665,16791.0,16789.0,0.119]
[1673015624237,1.1945665,16791.0,16788.0,0.1195]
[1673015624238,0.1,16790.0,16788.0,0.1195]
[1673015624652,0.88276242,16789.0,16788.0,0.1195]
[1673015625089,1.18346242,16789.0,16788.0,0.1195]
[1673015626353,1.60296242,16789.0,16784.0,0.11896]
[1673015626673,0.4202,16787.0,16784.0,0.11896]
[1673015626980,0.4202,16787.0,16784.0,0.31896]